[Event "*** Titled Tuesday Blitz"]
[Site "Chess.com"]
[Date "2021.03.30"]
[Round "9"]
[White "ApoIogiA"]
[Black "tandaleo"]
[Result "0-1"]
[WhiteElo "2194"]
[BlackElo "2354"]
[TimeControl "180+1"]
[EndTime "11:48:48 PDT"]
[Termination "tandaleo won by resignation"]

1. d4 {[%clk 0:02:52.4]} 1... Nf6 {[%clk 0:02:55.9]} 2. c4 {[%clk 0:02:52.8]}
2... g6 {[%clk 0:02:55.4]} 3. f3 {[%clk 0:02:53.3]} 3... Bg7 {[%clk 0:02:52.1]}
4. e4 {[%clk 0:02:52.5]} 4... d6 {[%clk 0:02:52.3]} 5. Nc3 {[%clk 0:02:52.3]}
5... O-O {[%clk 0:02:52.3]} 6. Nge2 {[%clk 0:02:52.3]} 6... c5 {[%clk
0:02:51.1]} 7. d5 {[%clk 0:02:51.9]} 7... e6 {[%clk 0:02:48.9]} 8. Ng3 {[%clk
0:02:51]} 8... exd5 {[%clk 0:02:48.3]} 9. cxd5 {[%clk 0:02:51.9]} 9... a6 {[%clk
0:02:46.4]} 10. a4 {[%clk 0:02:51.5]} 10... h5 {[%clk 0:02:46.3]} 11. Be2 {[%clk
0:02:50.8]} 11... h4 {[%clk 0:02:46]} 12. Nf1 {[%clk 0:02:50.1]} 12... Nbd7
{[%clk 0:02:35.9]} 13. Be3 {[%clk 0:02:48]} 13... Ne5 {[%clk 0:02:25.7]} 14. Nd2
{[%clk 0:02:46.5]} 14... Re8 {[%clk 0:02:21.5]} 15. O-O {[%clk 0:02:45.2]} 15...
Bd7 {[%clk 0:02:21.1]} 16. h3 {[%clk 0:02:28.3]} 16... c4 {[%clk 0:02:06.5]} 17.
Nxc4 {[%clk 0:02:11.5]} 17... Nxc4 {[%clk 0:02:04]} 18. Bxc4 {[%clk 0:02:11]}
18... Rc8 {[%clk 0:01:52.8]} 19. Qb3 {[%clk 0:01:38.4]} 19... Nh5 {[%clk
0:01:47.9]} 20. a5 {[%clk 0:01:30]} 20... f5 {[%clk 0:01:46]} 21. Bd3 {[%clk
0:01:04.1]} 21... f4 {[%clk 0:01:30.2]} 22. Bf2 {[%clk 0:01:01.4]} 22... Qg5
{[%clk 0:01:30]} 23. Kh1 {[%clk 0:00:54]} 23... Ng3+ {[%clk 0:01:10.7]} 24. Kh2
{[%clk 0:00:28.6]} 24... Nxf1+ {[%clk 0:01:09.7]} 25. Bxf1 {[%clk 0:00:29.5]}
25... Rc7 {[%clk 0:01:10.1]} 26. Qb6 {[%clk 0:00:24.2]} 26... Rec8 {[%clk
0:00:36.5]} 27. Ra3 {[%clk 0:00:23.6]} 27... Be5 {[%clk 0:00:35.7]} 28. Rb3
{[%clk 0:00:23.1]} 28... Qd8 {[%clk 0:00:30.2]} 29. Qb4 {[%clk 0:00:19.7]} 29...
g5 {[%clk 0:00:29.5]} 30. Be1 {[%clk 0:00:19.1]} 30... Qf6 {[%clk 0:00:23.9]}
31. Na4 {[%clk 0:00:15.9]} 31... Rc1 {[%clk 0:00:21.2]} 32. Nb6 {[%clk
0:00:15.4]} 32... R8c7 {[%clk 0:00:19.5]} 33. Nxd7 {[%clk 0:00:15.1]} 33... Rxd7
{[%clk 0:00:20.4]} 34. Qd2 {[%clk 0:00:12.1]} 34... Rdc7 {[%clk 0:00:18.9]} 35.
Bd3 {[%clk 0:00:10.4]} 35... Qd8 {[%clk 0:00:10]} 36. Rb6 {[%clk 0:00:09.8]}
36... Qc8 {[%clk 0:00:09.7]} 37. Kg1 {[%clk 0:00:09.1]} 37... Bd4+ {[%clk
0:00:07]} 38. Kf1 {[%clk 0:00:08.8]} 38... Bxb6 {[%clk 0:00:06.7]} 39. axb6
{[%clk 0:00:08]} 39... R7c2 {[%clk 0:00:07.2]} 40. Bxc2 {[%clk 0:00:07.6]} 40...
Qxc2 {[%clk 0:00:07.5]} 41. Qxc2 {[%clk 0:00:07.7]} 41... Rxc2 {[%clk 0:00:08]}
42. Bc3 {[%clk 0:00:08.2]} 42... Kf7 {[%clk 0:00:07.9]} 43. Kg1 {[%clk 0:00:08]}
43... Ke7 {[%clk 0:00:03.3]} 44. Kf1 {[%clk 0:00:08.5]} 44... Kd7 {[%clk
0:00:03.4]} 45. Kg1 {[%clk 0:00:08.6]} 45... Ke7 {[%clk 0:00:03.8]} 46. Kf1
{[%clk 0:00:08.5]} 46... Rc1+ {[%clk 0:00:04.3]} 47. Kf2 {[%clk 0:00:08.3]}
47... Ra1 {[%clk 0:00:04.8]} 48. Ke2 {[%clk 0:00:08.3]} 48... Ra4 {[%clk
0:00:05]} 49. Kf2 {[%clk 0:00:08.3]} 49... Rc4 {[%clk 0:00:05.4]} 50. Ke2 {[%clk
0:00:08.1]} 50... Rc5 {[%clk 0:00:05.9]} 51. Bd4 {[%clk 0:00:06.7]} 51... Rb5
{[%clk 0:00:06.3]} 52. Kf2 {[%clk 0:00:06.2]} 52... a5 {[%clk 0:00:06.7]} 53.
Ke2 {[%clk 0:00:06]} 53... a4 {[%clk 0:00:07.2]} 54. Kd3 {[%clk 0:00:06.2]}
54... Rb3+ {[%clk 0:00:07.3]} 55. Kc4 {[%clk 0:00:05.5]} 55... g4 {[%clk
0:00:03.5]} 56. hxg4 {[%clk 0:00:05]} 56... h3 {[%clk 0:00:03.9]} 57. gxh3
{[%clk 0:00:05]} 57... Rxf3 {[%clk 0:00:04.7]} 58. h4 {[%clk 0:00:04.7]} 58...
Rg3 {[%clk 0:00:03.9]} 59. g5 {[%clk 0:00:04.7]} 59... f3 {[%clk 0:00:04.5]} 60.
g6 {[%clk 0:00:02.9]} 60... Rxg6 {[%clk 0:00:04.7]} 61. Kd3 {[%clk 0:00:03.1]}
61... Rg4 {[%clk 0:00:03.8]} 62. Ke3 {[%clk 0:00:03.2]} 62... Rxh4 {[%clk
0:00:04.3]} 63. Kxf3 {[%clk 0:00:03.4]} 63... Rh3+ {[%clk 0:00:04.8]} 64. Ke2
{[%clk 0:00:04]} 64... Rb3 {[%clk 0:00:05]} 65. Kd2 {[%clk 0:00:03.3]} 65... Kf7
{[%clk 0:00:05.6]} 66. Bc3 {[%clk 0:00:03.7]} 66... Rxb6 {[%clk 0:00:04.1]} 67.
Kd3 {[%clk 0:00:04.6]} 67... Rb3 {[%clk 0:00:04.2]} 68. Kc4 {[%clk 0:00:04.6]}
68... b5+ {[%clk 0:00:04.5]} 69. Kd4 {[%clk 0:00:04.7]} 69... b4 {[%clk
0:00:04.2]} 70. Be1 {[%clk 0:00:04.4]} 70... Rxb2 {[%clk 0:00:04.8]} 71. Bg3
{[%clk 0:00:05]} 71... Ke7 {[%clk 0:00:04.7]} 72. Bh4+ {[%clk 0:00:04.8]} 72...
Kd7 {[%clk 0:00:05]} 73. Bg3 {[%clk 0:00:05.2]} 73... a3 {[%clk 0:00:05.3]} 74.
Be1 {[%clk 0:00:03.7]} 74... a2 {[%clk 0:00:05.4]} 75. Bg3 {[%clk 0:00:02.5]}
75... a1=Q {[%clk 0:00:05.6]} 76. Kc4 {[%clk 0:00:02.6]} 76... Rc2+ {[%clk
0:00:05.6]} 77. Kxb4 {[%clk 0:00:02]} 77... Qb2+ {[%clk 0:00:06]} 0-1

[Event "*** Titled Tuesday Blitz"]
[Site "Chess.com"]
[Date "2021.03.30"]
[Round "9"]
[White "MPGM"]
[Black "nrvisakh"]
[Result "1-0"]
[WhiteElo "2593"]
[BlackElo "2785"]
[TimeControl "180+1"]
[EndTime "11:49:35 PDT"]
[Termination "MPGM won by resignation"]

1. c4 {[%clk 0:03:00.9]} 1... g6 {[%clk 0:02:54.8]} 2. Nc3 {[%clk 0:02:59.4]}
2... Bg7 {[%clk 0:02:55]} 3. g3 {[%clk 0:02:57.1]} 3... Nf6 {[%clk 0:02:54.7]}
4. Bg2 {[%clk 0:02:57]} 4... O-O {[%clk 0:02:55.2]} 5. e3 {[%clk 0:02:52.8]}
5... e5 {[%clk 0:02:48.9]} 6. Nge2 {[%clk 0:02:51.3]} 6... Re8 {[%clk
0:02:33.1]} 7. d3 {[%clk 0:02:46.4]} 7... c6 {[%clk 0:02:29.7]} 8. Qb3 {[%clk
0:02:32.4]} 8... Na6 {[%clk 0:02:26.9]} 9. O-O {[%clk 0:02:26]} 9... Nc5 {[%clk
0:02:26.4]} 10. Qc2 {[%clk 0:02:26.3]} 10... a5 {[%clk 0:02:24]} 11. b3 {[%clk
0:02:18.5]} 11... d6 {[%clk 0:02:20.8]} 12. Bb2 {[%clk 0:02:18]} 12... Bf5
{[%clk 0:02:18.9]} 13. Rad1 {[%clk 0:02:14.2]} 13... Qc8 {[%clk 0:02:13.5]} 14.
Ne4 {[%clk 0:02:00.3]} 14... Qe6 {[%clk 0:01:46]} 15. N2c3 {[%clk 0:01:27.1]}
15... Rad8 {[%clk 0:01:34.7]} 16. Ba3 {[%clk 0:01:08.4]} 16... Nfxe4 {[%clk
0:01:12.6]} 17. dxe4 {[%clk 0:01:09.3]} 17... Bg4 {[%clk 0:01:12.4]} 18. f3
{[%clk 0:01:02.6]} 18... Bh3 {[%clk 0:01:08.2]} 19. Bxh3 {[%clk 0:00:55.3]}
19... Qxh3 {[%clk 0:01:07.8]} 20. Bxc5 {[%clk 0:00:55.7]} 20... dxc5 {[%clk
0:01:07.8]} 21. Na4 {[%clk 0:00:55.3]} 21... Bf8 {[%clk 0:01:02.8]} 22. Rxd8
{[%clk 0:00:51.8]} 22... Rxd8 {[%clk 0:01:02.5]} 23. Rd1 {[%clk 0:00:52.7]}
23... Qc8 {[%clk 0:00:53.2]} 24. Nb2 {[%clk 0:00:51.7]} 24... h5 {[%clk
0:00:51.1]} 25. Rxd8 {[%clk 0:00:47.6]} 25... Qxd8 {[%clk 0:00:51.2]} 26. Qd3
{[%clk 0:00:45.7]} 26... Qg5 {[%clk 0:00:48.7]} 27. Kg2 {[%clk 0:00:39.7]} 27...
Qe7 {[%clk 0:00:40.7]} 28. Nd1 {[%clk 0:00:28.4]} 28... Bh6 {[%clk 0:00:39.4]}
29. a4 {[%clk 0:00:27]} 29... Kh7 {[%clk 0:00:36.7]} 30. h4 {[%clk 0:00:19.7]}
30... Bg7 {[%clk 0:00:35.1]} 31. Nf2 {[%clk 0:00:19]} 31... Bf6 {[%clk
0:00:33.8]} 32. Nh3 {[%clk 0:00:19]} 32... Kg7 {[%clk 0:00:34]} 33. f4 {[%clk
0:00:18.2]} 33... Qe6 {[%clk 0:00:33.4]} 34. Qe2 {[%clk 0:00:16]} 34... Qd7
{[%clk 0:00:23.2]} 35. Ng5 {[%clk 0:00:12.8]} 35... Qc8 {[%clk 0:00:22.2]} 36.
Qd1 {[%clk 0:00:09.3]} 36... Qc7 {[%clk 0:00:19.2]} 37. Nf3 {[%clk 0:00:07.1]}
37... Qe7 {[%clk 0:00:18.8]} 38. Qd3 {[%clk 0:00:06.7]} 38... Qe6 {[%clk
0:00:18.6]} 39. f5 {[%clk 0:00:05.7]} 39... Qe7 {[%clk 0:00:18.9]} 40. fxg6
{[%clk 0:00:03.1]} 40... fxg6 {[%clk 0:00:18.7]} 41. Ne1 {[%clk 0:00:02.5]}
41... Qe6 {[%clk 0:00:18.8]} 42. Nf3 {[%clk 0:00:02.9]} 42... Qg4 {[%clk
0:00:18.3]} 43. Ng1 {[%clk 0:00:03.1]} 43... Bxh4 {[%clk 0:00:17.6]} 44. Ne2
{[%clk 0:00:02.8]} 44... Bf6 {[%clk 0:00:16.2]} 45. Kf2 {[%clk 0:00:03.3]} 45...
Qe6 {[%clk 0:00:15.7]} 46. Kf3 {[%clk 0:00:02.6]} 46... Qg4+ {[%clk 0:00:15.1]}
47. Kf2 {[%clk 0:00:03.2]} 47... Qe6 {[%clk 0:00:15.1]} 48. Qd1 {[%clk
0:00:02.8]} 48... h4 {[%clk 0:00:14.9]} 49. Qg1 {[%clk 0:00:01.4]} 49... Qg4
{[%clk 0:00:14.5]} 50. Qg2 {[%clk 0:00:01.4]} 50... Bg5 {[%clk 0:00:14]} 51. Qf3
{[%clk 0:00:01.3]} 51... Qh3 {[%clk 0:00:12.6]} 52. Qg2 {[%clk 0:00:01.5]} 52...
Bxe3+ {[%clk 0:00:11.4]} 53. Kf3 {[%clk 0:00:01.2]} 53... Qxg2+ {[%clk
0:00:11.1]} 54. Kxg2 {[%clk 0:00:02.1]} 54... hxg3 {[%clk 0:00:10.9]} 55. Kxg3
{[%clk 0:00:01.8]} 55... Kf6 {[%clk 0:00:10.7]} 56. Kg4 {[%clk 0:00:02.7]} 56...
Bd4 {[%clk 0:00:10.1]} 57. Ng3 {[%clk 0:00:02.9]} 57... b5 {[%clk 0:00:08.7]}
58. Nf1 {[%clk 0:00:03.8]} 58... bxa4 {[%clk 0:00:08]} 59. bxa4 {[%clk
0:00:03.9]} 59... Kg7 {[%clk 0:00:07.6]} 60. Nd2 {[%clk 0:00:04.4]} 60... Bc3
{[%clk 0:00:07.6]} 61. Nb3 {[%clk 0:00:04.3]} 61... Bb4 {[%clk 0:00:07.8]} 62.
Nc1 {[%clk 0:00:04.9]} 62... Kf6 {[%clk 0:00:07.5]} 63. Nd3 {[%clk 0:00:05.1]}
63... Ba3 {[%clk 0:00:06.6]} 64. Ne1 {[%clk 0:00:05.2]} 64... Bc1 {[%clk
0:00:06.6]} 65. Ng2 {[%clk 0:00:04.2]} 65... Bd2 {[%clk 0:00:05.9]} 66. Nh4
{[%clk 0:00:04.5]} 66... Kf7 {[%clk 0:00:05.1]} 67. Nf3 {[%clk 0:00:04.7]} 67...
Bf4 {[%clk 0:00:04.3]} 68. Ne1 {[%clk 0:00:04]} 68... Kf6 {[%clk 0:00:04.7]} 69.
Nd3 {[%clk 0:00:04.1]} 69... Be3 {[%clk 0:00:05.2]} 70. Ne1 {[%clk 0:00:03.3]}
70... Bd2 {[%clk 0:00:05.1]} 71. Nf3 {[%clk 0:00:03.7]} 71... Bc3 {[%clk
0:00:05.4]} 72. Ng1 {[%clk 0:00:04.1]} 72... Be1 {[%clk 0:00:05.2]} 73. Ne2
{[%clk 0:00:05]} 73... Bd2 {[%clk 0:00:04.7]} 74. Ng3 {[%clk 0:00:05.5]} 74...
Bf4 {[%clk 0:00:04.7]} 75. Nh1 {[%clk 0:00:05.6]} 75... Be3 {[%clk 0:00:04.5]}
76. Ng3 {[%clk 0:00:06]} 76... Bf4 {[%clk 0:00:04.6]} 77. Ne2 {[%clk 0:00:06.7]}
77... g5 {[%clk 0:00:04.7]} 78. Nc3 {[%clk 0:00:06.3]} 78... Bd2 {[%clk
0:00:04.9]} 79. Nd1 {[%clk 0:00:06.6]} 79... Be1 {[%clk 0:00:05]} 80. Ne3 {[%clk
0:00:06.6]} 80... Bd2 {[%clk 0:00:05.1]} 81. Nf5 {[%clk 0:00:07]} 81... Bb4
{[%clk 0:00:05.4]} 82. Kh5 {[%clk 0:00:07.4]} 82... Bd2 {[%clk 0:00:04]} 83. Nh6
{[%clk 0:00:07.4]} 83... Bb4 {[%clk 0:00:03.8]} 84. Ng4+ {[%clk 0:00:07.9]}
84... Ke6 {[%clk 0:00:04.3]} 85. Kxg5 {[%clk 0:00:08.4]} 85... Bd2+ {[%clk
0:00:04.9]} 86. Kg6 {[%clk 0:00:08.8]} 86... Bf4 {[%clk 0:00:04.9]} 87. Nf2
{[%clk 0:00:08.8]} 87... Be3 {[%clk 0:00:05.3]} 88. Nh3 {[%clk 0:00:08.6]} 88...
Ke7 {[%clk 0:00:04.3]} 89. Kf5 {[%clk 0:00:08.2]} 89... Kd6 {[%clk 0:00:04.7]}
90. Ng5 {[%clk 0:00:07.4]} 90... Bd4 {[%clk 0:00:03.9]} 91. Nf7+ {[%clk
0:00:07.1]} 91... Kc7 {[%clk 0:00:04.2]} 92. Nxe5 {[%clk 0:00:07.7]} 92... Kd6
{[%clk 0:00:04.7]} 93. Nd3 {[%clk 0:00:07]} 93... Bg7 {[%clk 0:00:04.2]} 94. e5+
{[%clk 0:00:06.7]} 94... Ke7 {[%clk 0:00:04.7]} 95. Nxc5 {[%clk 0:00:07.1]}
95... Bh6 {[%clk 0:00:04.6]} 96. Nb3 {[%clk 0:00:06.8]} 1-0

[Event "*** Titled Tuesday Blitz"]
[Site "Chess.com"]
[Date "2021.03.30"]
[Round "9"]
[White "Savva09022009"]
[Black "Abund"]
[Result "1/2-1/2"]
[WhiteElo "2608"]
[BlackElo "2734"]
[TimeControl "180+1"]
[EndTime "11:50:00 PDT"]
[Termination "Game drawn by repetition"]

1. d4 {[%clk 0:03:00.9]} 1... Nf6 {[%clk 0:02:58.9]} 2. c4 {[%clk 0:03:01.8]}
2... g6 {[%clk 0:02:57.9]} 3. Nc3 {[%clk 0:02:57.2]} 3... d5 {[%clk 0:02:57.4]}
4. cxd5 {[%clk 0:02:40.6]} 4... Nxd5 {[%clk 0:02:56.5]} 5. e4 {[%clk 0:02:41.5]}
5... Nxc3 {[%clk 0:02:56.6]} 6. bxc3 {[%clk 0:02:42.4]} 6... Bg7 {[%clk
0:02:57]} 7. Bc4 {[%clk 0:02:40.1]} 7... c5 {[%clk 0:02:48.3]} 8. Ne2 {[%clk
0:02:40.2]} 8... O-O {[%clk 0:02:44.7]} 9. O-O {[%clk 0:02:39.3]} 9... e6 {[%clk
0:02:32]} 10. Be3 {[%clk 0:02:36.1]} 10... cxd4 {[%clk 0:02:25.1]} 11. cxd4
{[%clk 0:02:37]} 11... Nc6 {[%clk 0:02:25.4]} 12. Rc1 {[%clk 0:02:33.3]} 12...
Na5 {[%clk 0:02:19.9]} 13. Bd3 {[%clk 0:02:33.3]} 13... b6 {[%clk 0:02:19]} 14.
f3 {[%clk 0:02:25.3]} 14... Bb7 {[%clk 0:02:18.2]} 15. Qd2 {[%clk 0:02:25.1]}
15... Qd7 {[%clk 0:02:15]} 16. Rc2 {[%clk 0:02:22.8]} 16... Rfc8 {[%clk
0:02:14.4]} 17. Rfc1 {[%clk 0:02:23]} 17... Rxc2 {[%clk 0:02:10]} 18. Rxc2
{[%clk 0:02:23.9]} 18... Rc8 {[%clk 0:02:10.7]} 19. Qc1 {[%clk 0:02:22.1]} 19...
h5 {[%clk 0:01:59.7]} 20. Rxc8+ {[%clk 0:02:17.5]} 20... Qxc8 {[%clk 0:01:59.4]}
21. Qxc8+ {[%clk 0:02:17.8]} 21... Bxc8 {[%clk 0:01:59.8]} 22. Kf2 {[%clk
0:02:11.6]} 22... Nc6 {[%clk 0:01:53.4]} 23. Bb5 {[%clk 0:02:11.1]} 23... Nb4
{[%clk 0:01:41.4]} 24. Bc4 {[%clk 0:02:03.4]} 24... Bb7 {[%clk 0:01:37.8]} 25.
Ke1 {[%clk 0:01:56.1]} 25... Nc2+ {[%clk 0:01:33.8]} 26. Kd2 {[%clk 0:01:56.4]}
26... Nxe3 {[%clk 0:01:34]} 27. Kxe3 {[%clk 0:01:57.3]} 27... Kf8 {[%clk
0:01:34.2]} 28. Nc3 {[%clk 0:01:57.3]} 28... Ke7 {[%clk 0:01:31.8]} 29. e5
{[%clk 0:01:57.3]} 29... Bh6+ {[%clk 0:01:29.2]} 30. Kd3 {[%clk 0:01:54]} 30...
h4 {[%clk 0:01:25.9]} 31. h3 {[%clk 0:01:51.6]} 31... f6 {[%clk 0:00:53.4]} 32.
exf6+ {[%clk 0:01:48.8]} 32... Kxf6 {[%clk 0:00:53.6]} 33. Ne4+ {[%clk
0:01:49.4]} 33... Ke7 {[%clk 0:00:51.7]} 34. Nf2 {[%clk 0:01:42.1]} 34... Bf4
{[%clk 0:00:49.7]} 35. Ng4 {[%clk 0:01:41.4]} 35... a6 {[%clk 0:00:47.7]} 36. a4
{[%clk 0:01:39.3]} 36... Bc6 {[%clk 0:00:46.4]} 37. Bxa6 {[%clk 0:01:38]} 37...
Bxa4 {[%clk 0:00:46.3]} 38. Nf2 {[%clk 0:01:27.7]} 38... Bc6 {[%clk 0:00:36.9]}
39. Ne4 {[%clk 0:01:24.6]} 39... Ba8 {[%clk 0:00:28.4]} 40. Bb5 {[%clk 0:01:23]}
40... Bd5 {[%clk 0:00:27.3]} 41. Nc3 {[%clk 0:01:13.8]} 41... Bb7 {[%clk
0:00:27.2]} 42. Ne2 {[%clk 0:01:13.9]} 42... Bc7 {[%clk 0:00:27.5]} 43. Ke3
{[%clk 0:01:10.5]} 43... Kf6 {[%clk 0:00:24.9]} 44. Nf4 {[%clk 0:01:05.8]} 44...
g5 {[%clk 0:00:19.5]} 45. Nd3 {[%clk 0:00:58.6]} 45... Bd5 {[%clk 0:00:19.4]}
46. Nb4 {[%clk 0:00:58.1]} 46... Bf4+ {[%clk 0:00:18.9]} 47. Ke2 {[%clk
0:00:56.9]} 47... Bb7 {[%clk 0:00:18.7]} 48. Bc6 {[%clk 0:00:51.1]} 48... Bc8
{[%clk 0:00:16.5]} 49. Kd3 {[%clk 0:00:50.4]} 49... Ke7 {[%clk 0:00:16.1]} 50.
Be4 {[%clk 0:00:49.6]} 50... Kd6 {[%clk 0:00:16.2]} 51. Kc4 {[%clk 0:00:48.7]}
51... Bd7 {[%clk 0:00:16]} 52. Nd3 {[%clk 0:00:44.1]} 52... Bc8 {[%clk
0:00:14.6]} 53. Kb5 {[%clk 0:00:36.9]} 53... Kc7 {[%clk 0:00:14.8]} 54. Kb4
{[%clk 0:00:26.4]} 54... Be3 {[%clk 0:00:13.1]} 55. Kc3 {[%clk 0:00:26.1]} 55...
Ba6 {[%clk 0:00:12.7]} 56. Bg6 {[%clk 0:00:18.2]} 56... Kd6 {[%clk 0:00:12.2]}
57. Be4 {[%clk 0:00:18.5]} 57... Bb5 {[%clk 0:00:11.9]} 58. Ne5 {[%clk
0:00:18.4]} 58... Ke7 {[%clk 0:00:08.3]} 59. Nc4 {[%clk 0:00:18.3]} 59... Bxc4
{[%clk 0:00:07.1]} 60. Kxc4 {[%clk 0:00:18.2]} 60... Kd6 {[%clk 0:00:07.4]} 61.
Bd3 {[%clk 0:00:15.3]} 61... Bf2 {[%clk 0:00:07.1]} 62. Be4 {[%clk 0:00:15.1]}
62... Kc7 {[%clk 0:00:06.5]} 63. d5 {[%clk 0:00:13.8]} 63... Kd6 {[%clk
0:00:05.8]} 64. dxe6 {[%clk 0:00:13.4]} 64... Kxe6 {[%clk 0:00:06.7]} 65. Kd3
{[%clk 0:00:08.9]} 65... Ke5 {[%clk 0:00:06.8]} 66. Ke2 {[%clk 0:00:08.3]} 66...
Bc5 {[%clk 0:00:06.1]} 67. Bd3 {[%clk 0:00:08.1]} 67... Kf4 {[%clk 0:00:06.2]}
68. Bb5 {[%clk 0:00:07.6]} 68... Kg3 {[%clk 0:00:06.3]} 69. Kf1 {[%clk
0:00:07.8]} 69... Kf4 {[%clk 0:00:06.2]} 70. Ke2 {[%clk 0:00:07.9]} 70... Bd6
{[%clk 0:00:06.3]} 71. Ba6 {[%clk 0:00:07.4]} 71... Ke5 {[%clk 0:00:06.6]} 72.
Kd3 {[%clk 0:00:07.5]} 72... Kd5 {[%clk 0:00:07]} 73. Bb7+ {[%clk 0:00:06.6]}
73... Kc5 {[%clk 0:00:07.4]} 74. Bc8 {[%clk 0:00:07.1]} 74... Bf4 {[%clk
0:00:07.4]} 75. Bd7 {[%clk 0:00:07.3]} 75... Kb4 {[%clk 0:00:07.7]} 76. Kc2
{[%clk 0:00:07.2]} 76... Kc4 {[%clk 0:00:07.6]} 77. Be6+ {[%clk 0:00:07.4]}
77... Kd4 {[%clk 0:00:07.8]} 78. Kb3 {[%clk 0:00:05.9]} 78... Ke3 {[%clk
0:00:07.6]} 79. Kb4 {[%clk 0:00:06]} 79... Kf2 {[%clk 0:00:07.8]} 80. Kb5 {[%clk
0:00:06.5]} 80... Be3 {[%clk 0:00:08.1]} 81. Bg4 {[%clk 0:00:07.4]} 81... Kxg2
{[%clk 0:00:07.8]} 82. Kb4 {[%clk 0:00:07.8]} 82... Kg3 {[%clk 0:00:08.2]} 83.
Kb5 {[%clk 0:00:08.7]} 83... Kf4 {[%clk 0:00:08.5]} 84. Kb4 {[%clk 0:00:09.6]}
84... Ke5 {[%clk 0:00:08.7]} 85. Kb5 {[%clk 0:00:10.5]} 85... Kd6 {[%clk
0:00:09]} 86. Bf5 {[%clk 0:00:09.3]} 86... Bc5 {[%clk 0:00:08.5]} 87. Bg4 {[%clk
0:00:10.2]} 87... Kd5 {[%clk 0:00:08.8]} 88. Bc8 {[%clk 0:00:10]} 88... Kd4
{[%clk 0:00:09.3]} 89. Bg4 {[%clk 0:00:10.9]} 89... Ke3 {[%clk 0:00:09.5]} 90.
Bh5 {[%clk 0:00:11.1]} 90... Kf4 {[%clk 0:00:09.6]} 91. Bg4 {[%clk 0:00:12]}
91... Kg3 {[%clk 0:00:09.8]} 92. Kc4 {[%clk 0:00:10.7]} 92... Be3 {[%clk
0:00:09.9]} 93. Kb5 {[%clk 0:00:11.6]} 93... Kf4 {[%clk 0:00:10.1]} 94. Kc4
{[%clk 0:00:11.8]} 94... Ke5 {[%clk 0:00:10.5]} 95. Kb5 {[%clk 0:00:12.7]} 95...
Kd5 {[%clk 0:00:10.6]} 96. Bh5 {[%clk 0:00:13.1]} 96... Kd6 {[%clk 0:00:09.9]}
97. Bg4 {[%clk 0:00:14]} 97... Bc5 {[%clk 0:00:09.9]} 98. Bh5 {[%clk 0:00:14.9]}
98... Ke6 {[%clk 0:00:10.2]} 99. Bg4+ {[%clk 0:00:15.8]} 99... Kd5 {[%clk
0:00:10.4]} 100. Bc8 {[%clk 0:00:16.2]} 100... Kd4 {[%clk 0:00:11]} 101. Bg4
{[%clk 0:00:17.1]} 101... Ke3 {[%clk 0:00:11.1]} 102. Bh5 {[%clk 0:00:18]}
102... Kf2 {[%clk 0:00:10.8]} 103. Bg4 {[%clk 0:00:18.9]} 103... Be3 {[%clk
0:00:11.2]} 104. Kc4 {[%clk 0:00:19.8]} 104... Kg3 {[%clk 0:00:11.5]} 105. Kb5
{[%clk 0:00:20.7]} 1/2-1/2